[Event "Superbet Rapid Poland 2022"]
[Site "Warsaw"]
[Date "2022.05.19"]
[Round "2.1"]
[White "Korobov, Anton"]
[Black "Gavrilescu, David"]
[Result "1-0"]
[ECO "D38"]
[WhiteElo "2671"]
[BlackElo "2518"]
[Annotator "TA"]
[PlyCount "109"]
[EventDate "2022.05.19"]
[EventType "tourn"]
[EventCountry "POL"]
[SourceTitle "playchess.com"]
[Source "ChessBase"]
[SourceQuality "1"]
[TimeControl "1500+10"]

{[%evp 18,109,22,0,15,11,13,15,20,19,23,24,37,35,37,32,36,35,29,0,0,0,0,0,0,0,0,0,0,0,0,0,0,0,20,17,19,21,22,17,28,21,39,41,146,152,129,131,340,340,286,322,314,306,238,164,197,51,420,420,358,358,316,134,148,148,11778,11778,10257,5695,5724,5251,5314,5191,4954,4715,4820,4862,4424,4424,2790,2295,4586,4240,3396,2546,29959,29963,29958,29956,29972,29973,29984,29985]} 1. d4 {[%emt 0:00:02]} d5 {[%emt 0:00:04]} 2. c4 {[%emt 0:00:03]} e6 {[%emt 0:00:02]} 3. Nc3 {[%emt 0:00:04]} Nf6 {[%emt 0:00:04]} 4. cxd5 {[%emt 0:00:05]} exd5 {[%emt 0:00:03]} 5. Bg5 {[%emt 0:00:03]} Bb4 {[%emt 0:00:07]} 6. e3 {[%emt 0:00:20]} h6 {[%emt 0:00:02]} 7. Bxf6 {[%emt 0:00:03]} Qxf6 {[%emt 0:00:03]} 8. Qa4+ {[%emt 0:00:04]} Nc6 {[%emt 0:00:03]} 9. Nf3 {[%emt 0:00:09]} O-O {[%emt 0:00:14]} 10. Rc1 {[%emt 0:00:03]} a6 {[%emt 0:00:19] D38: Queen's Gambit Declined: Ragozin Defence (4 Nf3 Bb4).} 11. a3 {[%emt 0:00:43]} Bxc3+ {[%emt 0:00:04]} 12. Rxc3 {[%emt 0:00:03]} Qg6 {[%emt 0:00:46] The position is equal.} 13. Qd1 {[%emt 0:02:20] Against Qb1} Re8 {[%emt 0:00:53]} 14. h3 {[%emt 0:00:07] [#]} Bf5 $146 {[%emt 0:04:36]} ({Predecessor:} 14... Qd6 15. Bd3 Ne7 16. Qc2 c6 17. O-O g6 18. Rb3 Rb8 19. Qc5 Qc7 20. Rc1 Be6 {1-0 (29) Laurusas,T (2506)-Brazdzionis,A (2317) Vilnius 2020}) 15. Nh4 {[%emt 0:00:25]} Qf6 {[%emt 0:00:02][%csl LRd4,LRh4]} 16. Nxf5 {[%emt 0:00:04]} Qxf5 {[%emt 0:00:03]} 17. Bd3 {[%emt 0:02:14]} Qd7 {[%emt 0:00:17]} 18. Qg4 {[%emt 0:01:15]} Qxg4 {[%emt 0:01:58]} 19. hxg4 {[%emt 0:00:02]} Nxd4 {[%emt 0:00:04]} 20. Rxc7 {[%emt 0:00:42]} Ne6 {[%emt 0:00:04]} 21. Rc2 {[%emt 0:05:53]} (21. Rxb7 $2 Nc5 22. Bxa6 Rxa6 $17) 21... d4 {[%emt 0:00:10]} 22. e4 {[%emt 0:00:01]} Nf4 {[%emt 0:00:21][%csl LRd3,LRg2]} 23. Kd2 {[%emt 0:00:02]} Nxg2 {[%emt 0:00:26]} 24. Rc7 {[%emt 0:00:15]} b5 {[%emt 0:01:02]} 25. Rh5 {[%emt 0:00:23]} Nf4 {[%emt 0:02:59]} 26. Rf5 {[%emt 0:00:43][%csl LRf4,LRf7]} Ne6 {[%emt 0:00:03]} 27. Rcxf7 {[%emt 0:01:08]} Ng5 {[%emt 0:00:03]} 28. Rc7 {[%emt 0:01:26]} Nxe4+ {[%emt 0:00:08]} 29. Kd1 {[%emt 0:00:50]} Ng5 {[%emt 0:03:49] Against Rff7} 30. f4 {[%emt 0:02:02]} Re3 {[%emt 0:05:15] [#]} (30... Ne6 $1 $14 31. Rc6 Nf8) 31. Bxb5 $1 $16 {[%emt 0:02:12]} axb5 {[%emt 0:05:37]} 32. fxg5 {[%emt 0:00:02][%mdl 4096] Endgame Strongly threatening Rff7. KRR-KRR} b4 $2 {[%emt 0:00:06] [#]} (32... Rf8 $16) 33. Rff7 $1 $18 {[%emt 0:00:30]} (33. axb4 Rg3 $16) 33... hxg5 {[%emt 0:00:32]} 34. Rxg7+ {[%emt 0:00:02]} (34. axb4 g6 $16) 34... Kf8 {[%emt 0:00:07]} 35. Rh7 {[%emt 0:00:20][%cal Rh7h8]} ({Worse is} 35. Rxg5 bxa3 36. bxa3 Rexa3 $11) ({Weaker is} 35. axb4 Ra1+ 36. Kc2 Rh1 $16) 35... Kg8 {[%emt 0:00:06] Against Rh8+} 36. Rcg7+ {[%emt 0:00:23]} ({But not} 36. axb4 $6 Rb3) 36... Kf8 {[%emt 0:00:01]} 37. Rxg5 {[%emt 0:00:08]} (37. Rb7 $18 {[%cal Rh7h8]} Kg8 38. axb4) 37... Rae8 $2 {[%emt 0:00:17][%mdl 8192]} (37... Ra4 $14) 38. Rh8+ {[%emt 0:02:10]} Ke7 {[%emt 0:00:27]} 39. Rxe8+ {[%emt 0:00:17]} Kxe8 {[%emt 0:00:02] KR-KR} 40. a4 {[%emt 0:00:10]} (40. axb4 $18 {is the precise move to win. Hoping for Kc2.} Rb3 41. Re5+ Kf7 42. b5) 40... Rg3 {[%emt 0:00:18]} 41. a5 {[%emt 0:00:11][%cal Ba4a5,Ba5a6][%mdl 32]} Rg2 $2 {[%emt 0:00:12][%mdl 8192]} (41... Kd7 $16 42. Rg7+ Kc8) 42. a6 {[%emt 0:00:06]} Rg1+ {[%emt 0:00:08]} 43. Kc2 {[%emt 0:00:16] Ra5 would kill now.} Ra1 {[%emt 0:00:06] Against Ra5} 44. Rg6 {[%emt 0:00:07]} Kf7 {[%emt 0:00:13]} 45. Rd6 {[%emt 0:00:09]} d3+ {[%emt 0:00:09]} 46. Kb3 {[%emt 0:00:11]} Ke7 {[%emt 0:00:12]} 47. Rxd3 {[%emt 0:00:06]} Rxa6 {[%emt 0:00:02]} 48. Rd4 {[%emt 0:00:04]} Ke6 {[%emt 0:00:12]} 49. Kxb4 {[%emt 0:00:13] And now Kc5 would win.} Rb6+ {[%emt 0:00:03]} 50. Kc3 {[%emt 0:00:03]} Ke5 {[%emt 0:00:04]} 51. b4 {[%emt 0:00:05][%cal Bb2b4,Bb4b5,Bb5b6,Bb6b7][%mdl 32]} Ra6 {[%emt 0:00:22]} 52. Rd8 {[%emt 0:00:39] White mates.} Rg6 {[%emt 0:00:11]} 53. b5 {[%emt 0:00:11]} Rxg4 {[%emt 0:00:14]} 54. b6 {[%emt 0:00:02]} Rg1 {[%emt 0:00:09]} 55. b7 {[%emt 0:00:12] Weighted Error Value: White=0.16 (very precise) /Black=0.52} 1-0

[Event "Superbet Rapid Poland 2022"]
[Site "Warsaw"]
[Date "2022.05.19"]
[Round "2.2"]
[White "Caruana, Fabiano"]
[Black "Duda, Jan-Krzysztof"]
[Result "1-0"]
[ECO "D35"]
[WhiteElo "2786"]
[BlackElo "2750"]
[Annotator "TA"]
[PlyCount "141"]
[EventDate "2022.05.19"]
[EventType "tourn"]
[EventCountry "POL"]
[SourceTitle "playchess.com"]
[Source "ChessBase"]
[SourceQuality "1"]
[TimeControl "1500+10"]

{[%evp 13,141,18,33,31,43,42,43,38,38,31,41,32,41,41,41,40,42,39,41,42,48,46,47,45,52,41,55,27,42,39,31,30,50,49,55,39,43,44,59,57,70,50,73,54,50,54,54,50,52,36,36,36,56,64,49,43,115,115,153,162,169,146,151,107,107,110,128,112,115,143,159,150,170,104,104,90,156,141,150,114,155,155,149,150,150,147,153,151,152,147,146,112,116,39,81,80,85,12,14,1,23,39,161,161,322,322,322,322,322,322,316,217,180,179,322,321,274,212,5563,678,29959,29960,29962,29960,29974,29975,29975,29976,29977,29978]} 1. c4 {[%emt 0:00:03]} e6 {[%emt 0:00:10]} 2. Nc3 {[%emt 0:00:02]} d5 {[%emt 0:00:09]} 3. d4 {[%emt 0:00:03]} Nf6 {[%emt 0:00:03]} 4. cxd5 {[%emt 0:00:04]} exd5 {[%emt 0:00:02]} 5. Bg5 {[%emt 0:00:02]} c6 {[%emt 0:00:05]} 6. e3 {[%emt 0:00:06]} h6 {[%emt 0:00:34]} 7. Bh4 {[%emt 0:00:03]} Bf5 {[%emt 0:00:09]} 8. Qf3 {[%emt 0:00:53] D35: Queen's Gambit Declined: Exchange Variation.} Bh7 {[%emt 0:00:03] Recently 8...Be6 got a lot of attention.} 9. Bxf6 {[%emt 0:00:05]} Qxf6 {[%emt 0:00:03]} 10. Qxf6 {[%emt 0:00:02] White is slightly better.} gxf6 {[%emt 0:00:02]} 11. Kd2 {[%emt 0:00:38]} Nd7 {[%emt 0:00:03][%cal Bb8d7,Bd7b6,Bb6c4][%mdl 32]} 12. Bd3 {[%emt 0:00:04]} Nb6 {[%emt 0:00:38]} 13. Bxh7 {[%emt 0:00:21]} Rxh7 {[%emt 0:00:02]} 14. Nf3 {[%emt 0:00:49]} Nc4+ {[%emt 0:00:35]} 15. Kc2 {[%emt 0:00:01]} f5 {[%emt 0:00:32]} 16. Ne2 {[%emt 0:00:41]} Nd6 {[%emt 0:00:31]} 17. Ng3 {[%emt 0:01:05]} Be7 {[%emt 0:03:27] Inhibits Nh4.} 18. Nh5 {[%emt 0:00:02] [#]} Ne4 $146 {[%emt 0:01:29]} ({Predecessor:} 18... Kd7 19. Rhg1 Rg8 20. h3 Rhh8 21. Kd3 Ne4 22. Ke2 Ke8 23. Ne5 Bd6 24. g4 Bxe5 25. dxe5 fxg4 26. hxg4 {½-½ (46) Chandra,A (2464)-Rosen,E (2392) Saint Louis 2016}) 19. Raf1 {[%emt 0:00:28]} O-O-O {[%emt 0:04:27]} 20. h3 {[%emt 0:00:24]} (20. Kd3 {feels hotter.} Kd7 21. Ne5+ Ke6 22. Nf4+) 20... Rg8 {[%emt 0:01:02]} 21. Rhg1 {[%emt 0:00:06]} Rhh8 {[%emt 0:00:47]} 22. Ne5 {[%emt 0:02:16] Pair of Knights!} Nd6 {[%emt 0:00:03]} 23. Kd3 {[%emt 0:02:07]} a5 {[%emt 0:00:51]} 24. a4 {[%emt 0:01:16]} Kc7 {[%emt 0:00:12]} 25. Ke2 {[%emt 0:00:23]} (25. Rc1 {looks sharper.} Ne4 26. Ke2 Rh7 27. Nd3) 25... Rf8 {[%emt 0:03:32]} 26. g4 {[%emt 0:01:06]} fxg4 {[%emt 0:01:00]} 27. hxg4 {[%emt 0:01:24]} Rhg8 {[%emt 0:00:02]} 28. Nf4 {[%emt 0:03:30] White is more active.} Bg5 {[%emt 0:00:39]} 29. Nfd3 {[%emt 0:00:08]} Re8 {[%emt 0:00:48]} 30. b3 {[%emt 0:02:34]} Rg7 {[%emt 0:00:31]} 31. Rh1 {[%emt 0:01:23]} Ne4 {[%emt 0:00:58] ...f6 is the strong threat.} 32. Rh3 {[%emt 0:00:43]} f6 {[%emt 0:03:48]} 33. Nf3 {[%emt 0:00:02]} Nxf2 {[%emt 0:00:59]} 34. Nxf2 {[%emt 0:04:01]} Bxe3 {[%emt 0:00:04]} (34... Rxe3+ $14 35. Kd1 Rge7) 35. Kd3 $16 {[%emt 0:00:23]} Rge7 {[%emt 0:00:06]} 36. Nd1 {[%emt 0:00:53]} Bf4 {[%emt 0:00:02]} 37. Rhh1 {[%emt 0:01:24]} Re4 {[%emt 0:00:36]} 38. Nc3 {[%emt 0:00:32] aiming for Nh4.} Re3+ {[%emt 0:00:50]} 39. Kc2 {[%emt 0:00:02] Threatens to win with Nh4.} Rg8 {[%emt 0:00:55]} 40. Rhg1 {[%emt 0:00:05]} Bd6 {[%emt 0:00:18]} 41. Ne1 {[%emt 0:01:08]} Rg6 {[%emt 0:00:31]} 42. Nd3 {[%emt 0:00:20]} Rh3 {[%emt 0:00:05]} 43. Nf4 {[%emt 0:00:06]} (43. Nd1 $18) 43... Rh2+ {[%emt 0:00:10]} 44. Kd3 {[%emt 0:00:02]} Rg8 {[%emt 0:00:19]} ({Black should play} 44... Bxf4 45. Rxf4 Rh3+ 46. Kc2 Rh2+ 47. Kc1 h5) 45. Nce2 {[%emt 0:00:16]} ({Much less strong is} 45. Ne6+ Kd7 $16) 45... Kb6 {[%emt 0:00:11]} 46. Rg2 {[%emt 0:00:17]} Rxg2 {[%emt 0:00:15]} 47. Nxg2 {[%emt 0:00:02]} Rxg4 {[%emt 0:00:09]} 48. Ne3 {[%emt 0:00:01]} Rg6 {[%emt 0:00:05]} 49. Rh1 {[%emt 0:00:06]} Ka7 {[%emt 0:00:12]} 50. Rh3 {[%emt 0:00:21]} Ka6 {[%emt 0:00:09]} 51. Nf5 {[%emt 0:00:02]} Bf8 {[%emt 0:00:04]} 52. Rg3 {[%emt 0:00:16]} Rg5 {[%emt 0:00:08]} 53. Rxg5 {[%emt 0:00:05]} (53. Rf3 $16) 53... fxg5 $14 {[%emt 0:00:02] [#]} 54. Neg3 $1 {[%emt 0:00:03]} b5 {[%emt 0:00:06] [#]} 55. Ne3 {[%emt 0:00:13]} ({White should try} 55. Nh5 $1 $16) 55... Kb6 {[%emt 0:00:17]} 56. Nh5 {[%emt 0:00:12]} Be7 {[%emt 0:00:24]} 57. Nf5 {[%emt 0:00:23][%csl LRe7,LRh6]} Bf8 {[%emt 0:00:02] Black cannot hold the game after this.} (57... Ba3 $1 $14) 58. Nf6 $18 {[%emt 0:00:04] Black must now prevent Nd7+.} Ka6 $2 {[%emt 0:00:20]} (58... Kc7 {was necessary.} 59. Nh7 Ba3 60. Nxh6 c5) 59. Nd7 {[%emt 0:00:06]} Ba3 {[%emt 0:00:09]} 60. Nxh6 {[%emt 0:00:04]} Bc1 {[%emt 0:00:11]} 61. Ng4 {[%emt 0:00:12]} Kb7 {[%emt 0:00:09]} 62. Ngf6 {[%emt 0:00:22]} Kc7 {[%emt 0:00:11]} 63. Nc5 {[%emt 0:00:02]} Kb6 {[%emt 0:00:12]} (63... Ba3 $142 64. Ne6+ Kb7) 64. Ne6 {[%emt 0:00:10]} Ka6 {[%emt 0:00:08]} 65. Kc2 {[%emt 0:00:26]} Be3 $2 {[%emt 0:00:11]} (65... Ba3 66. Ng4 Be7) 66. Ng4 {[%emt 0:00:08]} Bf4 {[%emt 0:00:11]} 67. Nxf4 {[%emt 0:00:07] White mates.} gxf4 {[%emt 0:00:01]} 68. Ne5 {[%emt 0:00:02]} bxa4 {[%emt 0:00:09]} 69. bxa4 {[%emt 0:00:01]} Kb6 {[%emt 0:00:07]} 70. Kd3 {[%emt 0:00:01]} Kc7 {[%emt 0:00:05]} 71. Ke2 {[%emt 0:00:06] Weighted Error Value: White=0.11 (very precise) /Black=0.17 (very precise)} 1-0

[Event "Superbet Rapid Poland 2022"]
[Site "Warsaw"]
[Date "2022.05.19"]
[Round "2.3"]
[White "Rapport, Richard"]
[Black "Aronian, Levon"]
[Result "1/2-1/2"]
[ECO "B50"]
[WhiteElo "2776"]
[BlackElo "2765"]
[Annotator "TA"]
[PlyCount "96"]
[EventDate "2022.05.19"]
[EventType "tourn"]
[EventCountry "POL"]
[SourceTitle "playchess.com"]
[Source "ChessBase"]
[SourceQuality "1"]
[TimeControl "1500+10"]

{[%evp 9,96,0,15,12,3,0,-7,-11,1,-14,-10,-45,-38,-34,-35,-45,-36,-49,-49,-80,-58,-71,-33,-6,-15,-21,-19,-45,-57,-114,-63,-58,-21,-15,0,0,0,0,0,0,0,0,0,0,0,4,273,273,273,272,268,268,268,266,256,24,36,19,28,24,19,20,33,0,0,0,0,0,0,0,0,0,0,0,0,0,0,0,0,0,0,0,0,0,0,0,0,0,0]} 1. e4 {[%emt 0:00:05]} c5 {[%emt 0:00:02]} 2. Nf3 {[%emt 0:00:08]} d6 {[%emt 0:00:02]} 3. Bc4 {[%emt 0:00:01]} Nc6 {[%emt 0:00:05]} 4. O-O {[%emt 0:00:19]} Nf6 {[%emt 0:00:04]} 5. d3 {[%emt 0:00:02]} a6 {[%emt 0:00:02]} 6. Bb3 {[%emt 0:00:58] [#] B50: Sicilian: 2...d6, Miscellaneous.} h6 $146 {[%emt 0:00:27]} ({Predecessor:} 6... Na5 7. e5 dxe5 8. Nxe5 e6 9. Bd2 Nxb3 10. axb3 Bd6 11. Nc4 Bc7 12. Qf3 Nd5 13. Nc3 {0-1 (28) Lobzhanidze,D (2453)-Gharamian,T (2651) Germany 2014}) 7. c3 {[%emt 0:00:03]} Bg4 {[%emt 0:00:05]} 8. Nbd2 {[%emt 0:00:14]} e6 {[%emt 0:00:04]} 9. h3 {[%emt 0:01:02]} Bh5 {[%emt 0:00:02]} 10. g4 {[%emt 0:00:08]} Bg6 {[%emt 0:00:02]} 11. Nh4 {[%emt 0:01:11]} Bh7 {[%emt 0:00:09][%cal Of6e4]} 12. Ng2 {[%emt 0:00:11]} d5 {[%emt 0:00:10][%cal Rd5e4]} 13. Qe2 {[%emt 0:00:17]} Be7 {[%emt 0:00:20]} 14. Bc2 {[%emt 0:00:57]} g5 {[%emt 0:00:49]} 15. f4 {[%emt 0:02:02]} gxf4 {[%emt 0:00:53]} 16. Nxf4 {[%emt 0:00:25]} Qc7 {[%emt 0:00:04]} 17. exd5 {[%emt 0:00:19]} exd5 {[%emt 0:00:02]} 18. Nb3 {[%emt 0:00:13]} O-O-O $1 {[%emt 0:00:17][%cal Oc5c4]} 19. d4 {[%emt 0:00:19]} ({Better is} 19. Ng2 $15) 19... Bxc2 {[%emt 0:00:34]} ({Black should play} 19... c4 $17 20. Bxh7 Rxh7) 20. Qxc2 $15 {[%emt 0:00:03]} h5 {[%emt 0:01:23]} 21. Qf5+ {[%emt 0:01:22]} (21. dxc5 hxg4 22. Qf5+ Rd7 23. hxg4 Rh4 $19) (21. Nxc5 Bxc5 22. Qf5+ (22. dxc5 hxg4 23. Qf5+ Nd7 $17) 22... Nd7 23. dxc5 hxg4 $17) 21... Kb8 {[%emt 0:00:59] [#] White must now prevent ...hxg4.} 22. Ng2 {[%emt 0:03:36] aiming for Bf4.} Ka8 {[%emt 0:05:20]} (22... hxg4 $2 23. Bf4 Bd6 24. Qxf6 $18) 23. Bf4 {[%emt 0:00:29]} Qb6 {[%emt 0:00:02][%cal Rc5d4]} 24. dxc5 {[%emt 0:00:10]} (24. Nxc5 hxg4 25. hxg4 Qxb2 $19) 24... Qb5 {[%emt 0:00:01] ...hxg4 is the strong threat.} 25. g5 {[%emt 0:02:12]} Ne4 {[%emt 0:00:02]} 26. Rad1 $36 {[%emt 0:00:04][%mdl 2048] White has the initiative.} Rhg8 {[%emt 0:01:24][%cal Re4g5]} 27. h4 {[%emt 0:00:13]} (27. Qxf7 $2 Bxg5 28. Rde1 Bxf4 29. Qxf4 Qa4 $19) 27... f6 $2 {[%emt 0:00:02][%mdl 8192]} (27... Bxc5+ $11 {and Black stays safe.} 28. Nxc5 Qxc5+ 29. Kh2 Rgf8) 28. Rxd5 $18 {[%emt 0:03:15]} fxg5 {[%emt 0:00:20] Threatens to win with ...Rxd5.} 29. Rxd8+ {[%emt 0:00:04]} (29. Qxe4 gxf4 30. Rxf4 (30. Rxh5 Rde8 $17) 30... Rdf8 $11) (29. hxg5 $6 Rxd5 30. Qxd5 Bxc5+ 31. Nxc5 Qxc5+ 32. Qxc5 Nxc5 $16) 29... Rxd8 {[%emt 0:02:31]} 30. Bc7 {[%emt 0:00:20]} ({Stronger than} 30. Qxe4 gxf4 31. Rxf4 (31. Qxf4 Rg8 $11) 31... Bxc5+ 32. Nxc5 Rd1+ 33. Kh2 (33. Kf2 Qxc5+ 34. Ke2 Qd6 $11) 33... Qxc5 $11) ({Much less strong is} 30. hxg5 Bxc5+ 31. Nxc5 Qxc5+ 32. Qxc5 Nxc5 $18) 30... Re8 {[%emt 0:01:16][%cal Og5h4]} (30... Rf8 $2 31. Qxf8+ Bxf8 32. Rxf8+ Ka7 33. Bb6+ Qxb6 34. cxb6+ $18) 31. Re1 {[%emt 0:00:35]} Nxc5 {[%emt 0:00:50][%cal Be4c5,Bc5d3,Bd3b2,Bb2d1][%mdl 32]} 32. Bd6 $2 {[%emt 0:02:14]} Nd3 $11 {[%emt 0:01:26]} 33. Qxb5 {[%emt 0:00:25]} axb5 {[%emt 0:00:01]} 34. Re3 {[%emt 0:01:50] Strongly threatening Bxe7.} Nxb2 {[%emt 0:00:02] Hoping for ...Nc4.} 35. Bxe7 {[%emt 0:00:05][%mdl 64] [#] Remove Defender} (35. Nd4 {is more complex.} Nc4 36. Nxc6 Nxe3 37. Nxe7 Nc4 38. Bb4) 35... Rxe7 {[%emt 0:00:07]} 36. Rxe7 {[%emt 0:00:02]} Nxe7 {[%emt 0:00:02] The position is equal.} 37. hxg5 {[%emt 0:00:03][%mdl 4096] Endgame KNN-KNN} Nd1 {[%emt 0:00:07]} 38. Nf4 {[%emt 0:00:20]} Nxc3 {[%emt 0:00:03]} 39. g6 {[%emt 0:00:07]} Nxg6 {[%emt 0:00:02]} 40. Nxg6 {[%emt 0:00:02]} Nxa2 {[%emt 0:00:01]} 41. Nf4 {[%emt 0:00:12]} Nb4 {[%emt 0:00:02]} 42. Nxh5 {[%emt 0:00:03]} Na6 {[%emt 0:00:04]} 43. Nf6 {[%emt 0:00:03]} b6 {[%emt 0:00:02]} 44. Nd4 {[%emt 0:00:04]} Kb7 {[%emt 0:00:09]} 45. Nxb5 {[%emt 0:00:03]} Kc6 {[%emt 0:00:02]} 46. Na7+ {[%emt 0:00:02]} Kb7 {[%emt 0:00:02]} 47. Nd7 {[%emt 0:00:01]} Kxa7 {[%emt 0:00:01]} 48. Nxb6 Kxb6 {[%emt 0:12:34] Blacks defense is rewarded with a draw.  Weighted Error Value: White=0.14 (very precise) /Black=0.15 (very precise)} 1/2-1/2